Workbook

Sheet PWM Table for LED Fading or Dim
F1: MAX PWM | G1: 255
A2: Index | B2: PWM | C2: PWM2 | D2: PWM3 | F2: Steps | G2: 64 | M2: Wunschwerte eintragen / Choose values
A3: 0 | B3: 0 | C3: 0 | D3: =ROUND(2^($G$5*($A3+1)/$G$2)-1,0) -> 0 | F3: Factor | G3: 3 | M3: Zwischenergebnis / Interim results
A4: 1 | B4: =ROUND($G$3*POWER($G$6,A4),0) -> 3 | C4: =ROUND(2^($G$4*($A4)/$G$2),0) -> 1 | D4: 0 | F4: No-of-Bits1 | G4: =LOG($G$1)/LOG(2) -> 7.994353437 | H4: =LOG2(MAX PWM) | M4: PWM Werte für pwmtable[] / PWM values for pwmtable[]
A5: 2 | B5: 3 | C5: =ROUND(2^($G$4*($A5+1)/$G$2),0) -> 1 | D5: 0 | F5: No-of-Bits2 | G5: =LOG($G$1+1)/LOG(2) -> 8 | H5: =LOG2(MAX PWM + 1)
A6: 3 | B6: 4 | C6: 1 | D6: 0 | F6: Basis | G6: =POWER(G1/G3,1/(G2-1)) -> 1.073064178 | H6: =(MAX PWM / Factor) ^ (1 / (Steps-1))
A7: 4 | B7: 4 | C7: 2 | D7: 1 | F7: PWM1[Index] = Round(Factor * Basis^Index); Index=1....Steps-1 | L7: Originalfunktion / original function
A8: 5 | B8: 4 | C8: 2 | D8: 1 | F8: PWM2[Index] = Round(2 ^( No-of-Bits1 * (Index+1) / Steps) ); Index=1....Steps-1 | L8: Alternative Funktion / alternative function
A9: 6 | B9: 5 | C9: 2 | D9: 1 | F9: PWM3[Index] = Round(2 ^( No-of-Bits2 * (Index+1) / Steps)-1); Index=0....Steps-1 | L9: Alternative Funktion / alternative function
A10: 7 | B10: 5 | C10: 2 | D10: 1
A11: 8 | B11: 5 | C11: 2 | D11: 1
A12: 9 | B12: 6 | C12: 2 | D12: 1
A13: 10 | B13: 6 | C13: 3 | D13: 2
A14: 11 | B14: 7 | C14: 3 | D14: 2
A15: 12 | B15: 7 | C15: 3 | D15: 2
A16: 13 | B16: 8 | C16: 3 | D16: 2
A17: 14 | B17: 8 | C17: 4 | D17: 3
A18: 15 | B18: 9 | C18: 4 | D18: 3
A19: 16 | B19: 9 | C19: 4 | D19: 3
A20: 17 | B20: 10 | C20: 5 | D20: 4
A21: 18 | B21: 11 | C21: 5 | D21: 4
A22: 19 | B22: 11 | C22: 6 | D22: 5
A23: 20 | B23: 12 | C23: 6 | D23: 5
A24: 21 | B24: 13 | C24: 7 | D24: 6
A25: 22 | B25: 14 | C25: 7 | D25: 6
A26: 23 | B26: 15 | C26: 8 | D26: 7
A27: 24 | B27: 16 | C27: 9 | D27: 8
A28: 25 | B28: 17 | C28: 9 | D28: 9
A29: 26 | B29: 19 | C29: 10 | D29: 9
A30: 27 | B30: 20 | C30: 11 | D30: 10
A31: 28 | B31: 22 | C31: 12 | D31: 11
A32: 29 | B32: 23 | C32: 13 | D32: 12
A33: 30 | B33: 25 | C33: 15 | D33: 14
A34: 31 | B34: 27 | C34: 16 | D34: 15
A35: 32 | B35: 29 | C35: 17 | D35: 16
A36: 33 | B36: 31 | C36: 19 | D36: 18
A37: 34 | B37: 33 | C37: 21 | D37: 20
A38: 35 | B38: 35 | C38: 23 | D38: 22
A39: 36 | B39: 38 | C39: 25 | D39: 24
A40: 37 | B40: 41 | C40: 27 | D40: 26
A41: 38 | B41: 44 | C41: 29 | D41: 28 | F41: Werte zur Generierung der Tabellen aus dem Democode
A42: 39 | B42: 47 | C42: 32 | D42: 31 | F42: mithilfe der Funktion PWM
A43: 40 | B43: 50 | C43: 35 | D43: 34 | F43: Tabelle / Table | G43: MAX PWM | H43: Steps | I43: Factor
A44: 41 | B44: 54 | C44: 38 | D44: 37 | F44: pwmtable_8A | G44: 255 | H44: 4 | I44: 4
A45: 42 | B45: 58 | C45: 41 | D45: 40 | F45: pwmtable_8B | G45: 255 | H45: 8 | I45: 2
A46: 43 | B46: 62 | C46: 45 | D46: 44 | F46: pwmtable_8C | G46: 255 | H46: 16 | I46: 1.435
A47: 44 | B47: 67 | C47: 49 | D47: 48 | F47: pwmtable_8D | G47: 255 | H47: 32 | I47: 1.21
A48: 45 | B48: 72 | C48: 54 | D48: 53 | F48: pwmtable_10 | G48: 1023 | H48: 64 | I48: 1.115
A49: 46 | B49: 77 | C49: 59 | D49: 58 | F49: pwmtable_16 | G49: 65535 | H49: 256 | I49: 1.04427
A50: 47 | B50: 83 | C50: 64 | D50: 63
A51: 48 | B51: 89 | C51: 70 | D51: 69
A52: 49 | B52: 95 | C52: 76 | D52: 75
A53: 50 | B53: 102 | C53: 83 | D53: 82
A54: 51 | B54: 109 | C54: 90 | D54: 90
A55: 52 | B55: 117 | C55: 98 | D55: 98
A56: 53 | B56: 126 | C56: 107 | D56: 107
A57: 54 | B57: 135 | C57: 117 | D57: 116
A58: 55 | B58: 145 | C58: 128 | D58: 127
A59: 56 | B59: 156 | C59: 139 | D59: 139
A60: 57 | B60: 167 | C60: 152 | D60: 151
A61: 58 | B61: 179 | C61: 165 | D61: 165
A62: 59 | B62: 192 | C62: 180 | D62: 180
A63: 60 | B63: 206 | C63: 197 | D63: 196
A64: 61 | B64: 221 | C64: 214 | D64: 214
A65: 62 | B65: 238 | C65: 234 | D65: 234
A66: 63 | B66: 255 | C66: 255 | D66: 255
A67: 64 | B67: 274 | C67: 278 | D67: =ROUND(2^($G$5*($A67+1)/$G$2)-1,0) -> 278
A68: 65 | B68: =ROUND($G$3*POWER($G$6,A68),0) -> 294 | C68: 303 | D68: 303
A69: 66 | B69: 315 | C69: =ROUND(2^($G$4*($A69+1)/$G$2),0) -> 331 | D69: 331
A70: 67 | B70: 338 | C70: 361 | D70: 361
A71: 68 | B71: 363 | C71: 393 | D71: 394
A72: 69 | B72: 389 | C72: 429 | D72: 430
A73: 70 | B73: 418 | C73: 467 | D73: 469
A74: 71 | B74: 448 | C74: 510 | D74: 511
A75: 72 | B75: 481 | C75: 556 | D75: 557
A76: 73 | B76: 516 | C76: 606 | D76: 608
A77: 74 | B77: 554 | C77: 661 | D77: 663
A78: 75 | B78: 594 | C78: 721 | D78: 723
A79: 76 | B79: 638 | C79: 786 | D79: 789
A80: 77 | B80: 684 | C80: 857 | D80: 860
A81: 78 | B81: 734 | C81: 934 | D81: 938
A82: 79 | B82: 788 | C82: 1019 | D82: 1023
A83: 80 | B83: 846 | C83: 1111 | D83: 1116
A84: 81 | B84: 907 | C84: 1212 | D84: 1217
A85: 82 | B85: 974 | C85: 1321 | D85: 1327
A86: 83 | B86: 1045 | C86: 1441 | D86: 1447
A87: 84 | B87: 1121 | C87: 1571 | D87: 1578
A88: 85 | B88: 1203 | C88: 1713 | D88: 1721
A89: 86 | B89: 1291 | C89: 1868 | D89: 1877
A90: 87 | B90: 1385 | C90: 2037 | D90: 2047
A91: 88 | B91: 1487 | C91: 2221 | D91: 2232
A92: 89 | B92: 1595 | C92: 2422 | D92: 2434
A93: 90 | B93: 1712 | C93: 2641 | D93: 2655
A94: 91 | B94: 1837 | C94: 2880 | D94: 2895
A95: 92 | B95: 1971 | C95: 3141 | D95: 3157
A96: 93 | B96: 2115 | C96: 3425 | D96: 3443
A97: 94 | B97: 2270 | C97: 3734 | D97: 3755
A98: 95 | B98: 2435 | C98: 4072 | D98: 4095
A99: 96 | B99: 2613 | C99: 4440 | D99: 4466
A100: 97 | B100: 2804 | C100: 4842 | D100: 4870
A101: 98 | B101: 3009 | C101: 5280 | D101: 5311
A102: 99 | B102: 3229 | C102: 5757 | D102: 5792
A103: 100 | B103: 3465 | C103: 6278 | D103: 6316
A104: 101 | B104: 3718 | C104: 6846 | D104: 6888
A105: 102 | B105: 3990 | C105: 7465 | D105: 7511
A106: 103 | B106: 4281 | C106: 8140 | D106: 8191
A107: 104 | B107: 4594 | C107: 8876 | D107: 8932
A108: 105 | B108: 4930 | C108: 9679 | D108: 9741
A109: 106 | B109: 5290 | C109: 10554 | D109: 10623
A110: 107 | B110: 5676 | C110: 11509 | D110: 11584
A111: 108 | B111: 6091 | C111: 12550 | D111: 12633
A112: 109 | B112: 6536 | C112: 13685 | D112: 13776
A113: 110 | B113: 7014 | C113: 14923 | D113: 15023
A114: 111 | B114: 7526 | C114: 16272 | D114: 16383
A115: 112 | B115: 8076 | C115: 17744 | D115: 17866
A116: 113 | B116: 8666 | C116: 19349 | D116: 19483
A117: 114 | B117: 9299 | C117: 21099 | D117: 21246
A118: 115 | B118: 9979 | C118: 23007 | D118: 23169
A119: 116 | B119: 10708 | C119: 25087 | D119: 25267
A120: 117 | B120: 11490 | C120: 27356 | D120: 27553
A121: 118 | B121: 12330 | C121: 29831 | D121: 30047
A122: 119 | B122: 13231 | C122: 32528 | D122: 32767
A123: 120 | B123: 14197 | C123: 35470 | D123: 35733
A124: 121 | B124: 15235 | C124: 38678 | D124: 38967
A125: 122 | B125: 16348 | C125: 42176 | D125: 42494
A126: 123 | B126: 17542 | C126: 45991 | D126: 46340
A127: 124 | B127: 18824 | C127: 50150 | D127: 50534
A128: 125 | B128: 20199 | C128: 54686 | D128: 55108
A129: 126 | B129: 21675 | C129: 59632 | D129: 60096
A130: 127 | B130: 23259 | C130: 65025 | D130: 65535
A131: 128 | B131: 24958 | C131: 70906 | D131: =ROUND(2^($G$5*($A131+1)/$G$2)-1,0) -> 71467
A132: 129 | B132: =ROUND($G$3*POWER($G$6,A132),0) -> 26782 | C132: 77319 | D132: 77935
A133: 130 | B133: 28738 | C133: =ROUND(2^($G$4*($A133+1)/$G$2),0) -> 84312 | D133: 84989
A134: 131 | B134: 30838 | C134: 91937 | D134: 92681
A135: 132 | B135: 33091 | C135: 100252 | D135: 101069
A136: 133 | B136: 35509 | C136: 109318 | D136: 110217
A137: 134 | B137: 38103 | C137: 119205 | D137: 120193
A138: 135 | B138: 40887 | C138: 129986 | D138: 131071
A139: 136 | B139: 43875 | C139: 141742 | D139: 142934
A140: 137 | B140: 47081 | C140: 154562 | D140: 155871
A141: 138 | B141: 50520 | C141: 168541 | D141: 169978
A142: 139 | B142: 54212 | C142: 183784 | D142: 185363
A143: 140 | B143: 58173 | C143: 200405 | D143: 202140
A144: 141 | B144: 62423 | C144: 218530 | D144: 220435
A145: 142 | B145: 66984 | C145: 238294 | D145: 240386
A146: 143 | B146: 71878 | C146: 259846 | D146: 262143
A147: 144 | B147: 77130 | C147: 283346 | D147: 285869
A148: 145 | B148: 82765 | C148: 308972 | D148: 311743
A149: 146 | B149: 88812 | C149: 336916 | D149: 339958
A150: 147 | B150: 95301 | C150: 367387 | D150: 370727
A151: 148 | B151: 102264 | C151: 400614 | D151: 404280
A152: 149 | B152: 109736 | C152: 436846 | D152: 440871
A153: 150 | B153: 117754 | C153: 476355 | D153: 480773
A154: 151 | B154: 126358 | C154: 519437 | D154: 524287
A155: 152 | B155: 135590 | C155: 566415 | D155: 571739
A156: 153 | B156: 145497 | C156: 617643 | D156: 623486
A157: 154 | B157: 156127 | C157: 673503 | D157: 679916
A158: 155 | B158: 167535 | C158: 734415 | D158: 741454
A159: 156 | B159: 179775 | C159: 800837 | D159: 808562
A160: 157 | B160: 192910 | C160: 873265 | D160: 881743
A161: 158 | B161: 207005 | C161: 952244 | D161: 961547
A162: 159 | B162: 222130 | C162: 1038366 | D162: 1048575
A163: 160 | B163: 238360 | C163: 1132277 | D163: 1143479
A164: 161 | B164: 255775 | C164: 1234681 | D164: 1246973
A165: 162 | B165: 274463 | C165: 1346347 | D165: 1359834
A166: 163 | B166: 294517 | C166: 1468112 | D166: 1482909
A167: 164 | B167: 316035 | C167: 1600890 | D167: 1617124
A168: 165 | B168: 339126 | C168: 1745676 | D168: 1763487
A169: 166 | B169: 363904 | C169: 1903557 | D169: 1923096
A170: 167 | B170: 390492 | C170: 2075716 | D170: 2097151
A171: 168 | B171: 419024 | C171: 2263446 | D171: 2286959
A172: 169 | B172: 449639 | C172: 2468155 | D172: 2493947
A173: 170 | B173: 482492 | C173: 2691377 | D173: 2719669
A174: 171 | B174: 517744 | C174: 2934788 | D174: 2965820
A175: 172 | B175: 555573 | C175: 3200213 | D175: 3234250
A176: 173 | B176: 596166 | C176: 3489644 | D176: 3526974
A177: 174 | B177: 639724 | C177: 3805251 | D177: 3846193
A178: 175 | B178: 686465 | C178: 4149402 | D178: 4194303
A179: 176 | B179: 736621 | C179: 4524678 | D179: 4573920
A180: 177 | B180: 790441 | C180: 4933895 | D180: 4987895
A181: 178 | B181: 848194 | C181: 5380121 | D181: 5439338
A182: 179 | B182: 910167 | C182: 5866705 | D182: 5931641
A183: 180 | B183: 976668 | C183: 6397296 | D183: 6468500
A184: 181 | B184: 1048027 | C184: 6975874 | D184: 7053949
A185: 182 | B185: 1124600 | C185: 7606780 | D185: 7692386
A186: 183 | B186: 1206768 | C186: 8294745 | D186: 8388607
A187: 184 | B187: 1294940 | C187: 9044930 | D187: 9147841
A188: 185 | B188: 1389553 | C188: 9862963 | D188: 9975791
A189: 186 | B189: 1491080 | C189: 10754980 | D189: 10878678
A190: 187 | B190: 1600025 | C190: 11727671 | D190: 11863282
A191: 188 | B191: 1716929 | C191: 12788334 | D191: 12937001
A192: 189 | B192: 1842375 | C192: 13944924 | D192: 14107900
A193: 190 | B193: 1976987 | C193: 15206118 | D193: 15384774
A194: 191 | B194: 2121434 | C194: 16581375 | D194: 16777215
A195: 192 | B195: 2276434 | C195: 18081012 | D195: =ROUND(2^($G$5*($A195+1)/$G$2)-1,0) -> 18295683
A196: 193 | B196: =ROUND($G$3*POWER($G$6,A196),0) -> 2442760 | C196: 19716277 | D196: 19951584
A197: 194 | B197: 2621238 | C197: =ROUND(2^($G$4*($A197+1)/$G$2),0) -> 21499438 | D197: 21757356
A198: 195 | B198: 2812757 | C198: 23443870 | D198: 23726565
A199: 196 | B199: 3018269 | C199: 25564158 | D199: 25874003
A200: 197 | B200: 3238796 | C200: 27876207 | D200: 28215801
... 58 more rows
